[Event "*** Titled Tuesday Blitz"]
[Site "Chess.com"]
[Date "2020.03.03"]
[Round "4"]
[White "moro182"]
[Black "Aleksey_Sorokin"]
[Result "1-0"]
[WhiteElo "2705"]
[BlackElo "2847"]
[TimeControl "180+1"]
[EndTime "13:40:49 PST"]
[Termination "moro182 won by resignation"]

1. d4 {[%clk 0:03:00.9]} 1... Nf6 {[%clk 0:02:59.6]} 2. c4 {[%clk 0:03:01.3]}
2... e6 {[%clk 0:02:59.6]} 3. Nc3 {[%clk 0:03:00.9]} 3... Bb4 {[%clk 0:02:59.9]}
4. Nf3 {[%clk 0:03:01.3]} 4... O-O {[%clk 0:02:58.9]} 5. Bg5 {[%clk 0:02:59.3]}
5... h6 {[%clk 0:02:57.2]} 6. Bh4 {[%clk 0:02:59.1]} 6... c5 {[%clk 0:02:56.8]}
7. Rc1 {[%clk 0:02:58.8]} 7... cxd4 {[%clk 0:02:55.1]} 8. Nxd4 {[%clk
0:02:59.7]} 8... Nc6 {[%clk 0:02:54.7]} 9. e3 {[%clk 0:02:58.5]} 9... b6 {[%clk
0:02:43.9]} 10. Be2 {[%clk 0:02:48.1]} 10... Bb7 {[%clk 0:02:41.6]} 11. Bf3
{[%clk 0:02:46.1]} 11... e5 {[%clk 0:02:24.8]} 12. Nf5 {[%clk 0:02:34.8]} 12...
Re8 {[%clk 0:01:12.1]} 13. O-O {[%clk 0:02:30.2]} 13... Bxc3 {[%clk 0:01:11.4]}
14. Rxc3 {[%clk 0:02:28.8]} 14... e4 {[%clk 0:01:11.3]} 15. Be2 {[%clk
0:02:24.4]} 15... Re5 {[%clk 0:01:10.7]} 16. Nd6 {[%clk 0:02:18.3]} 16... Rb8
{[%clk 0:01:09.7]} 17. Bg3 {[%clk 0:02:12.9]} 17... Re6 {[%clk 0:01:07.8]} 18.
a3 {[%clk 0:02:00]} 18... Ne5 {[%clk 0:01:06.1]} 19. b4 {[%clk 0:01:51.1]} 19...
Qf8 {[%clk 0:00:59.5]} 20. Nb5 {[%clk 0:01:47.8]} 20... a6 {[%clk 0:00:38.1]}
21. Nd4 {[%clk 0:01:45.7]} 21... Ree8 {[%clk 0:00:36.7]} 22. c5 {[%clk
0:01:45.3]} 22... bxc5 {[%clk 0:00:35.4]} 23. bxc5 {[%clk 0:01:40.9]} 23... Rbc8
{[%clk 0:00:34.7]} 24. Qc1 {[%clk 0:01:18.8]} 24... Nd5 {[%clk 0:00:33.1]} 25.
Rc2 {[%clk 0:01:18.7]} 25... f5 {[%clk 0:00:33.1]} 26. Rd1 {[%clk 0:01:15.4]}
26... g5 {[%clk 0:00:29.4]} 27. Bxe5 {[%clk 0:01:15.4]} 27... Rxe5 {[%clk
0:00:29.6]} 28. c6 {[%clk 0:01:16.3]} 28... Bxc6 {[%clk 0:00:27.9]} 29. Nxc6
{[%clk 0:01:17.2]} 29... dxc6 {[%clk 0:00:26.4]} 30. Rxc6 {[%clk 0:01:18.1]}
30... Rxc6 {[%clk 0:00:26.6]} 31. Qxc6 {[%clk 0:01:19]} 31... Nf6 {[%clk
0:00:24.6]} 32. Qxa6 {[%clk 0:01:14.9]} 32... Kg7 {[%clk 0:00:24.8]} 33. a4
{[%clk 0:01:10.1]} 33... Qa3 {[%clk 0:00:24.9]} 34. Qa7+ {[%clk 0:01:07.8]}
34... Re7 {[%clk 0:00:24.8]} 35. Qa5 {[%clk 0:01:03.3]} 35... Qa2 {[%clk
0:00:22.7]} 36. Bf1 {[%clk 0:01:01.6]} 36... f4 {[%clk 0:00:22.5]} 37. exf4
{[%clk 0:01:00.7]} 37... gxf4 {[%clk 0:00:22.3]} 38. Qc5 {[%clk 0:00:58]} 38...
Rf7 {[%clk 0:00:19.4]} 39. Qd4 {[%clk 0:00:47.5]} 39... Qc2 {[%clk 0:00:17.2]}
40. Re1 {[%clk 0:00:43.7]} 40... Rd7 {[%clk 0:00:16.7]} 41. Qe5 {[%clk 0:00:41]}
41... Rd2 {[%clk 0:00:15.2]} 42. Qxf4 {[%clk 0:00:38.7]} 42... Rd7 {[%clk
0:00:12.3]} 43. a5 {[%clk 0:00:36.7]} 43... Qc3 {[%clk 0:00:12.4]} 44. Qg3+
{[%clk 0:00:35.2]} 44... Kf8 {[%clk 0:00:11.6]} 45. Qxc3 {[%clk 0:00:34.2]} 1-0

[Event "*** Titled Tuesday Blitz"]
[Site "Chess.com"]
[Date "2020.03.03"]
[Round "4"]
[White "CrushingKings"]
[Black "FedaMaster"]
[Result "1-0"]
[WhiteElo "2206"]
[BlackElo "2420"]
[TimeControl "180+1"]
[EndTime "13:40:49 PST"]
[Termination "CrushingKings won by checkmate"]

1. e4 {[%clk 0:03:00.9]} 1... Nf6 {[%clk 0:02:58]} 2. e5 {[%clk 0:03:00.1]} 2...
Nd5 {[%clk 0:02:57.2]} 3. c4 {[%clk 0:02:57.1]} 3... Nb6 {[%clk 0:02:57]} 4. d4
{[%clk 0:02:58]} 4... d6 {[%clk 0:02:57.3]} 5. exd6 {[%clk 0:02:58.9]} 5... exd6
{[%clk 0:02:57.6]} 6. Nc3 {[%clk 0:02:59.2]} 6... Be7 {[%clk 0:02:57.5]} 7. Be3
{[%clk 0:02:58.2]} 7... O-O {[%clk 0:02:57.8]} 8. Bd3 {[%clk 0:02:57.9]} 8...
Re8 {[%clk 0:02:35.9]} 9. Nge2 {[%clk 0:02:57.8]} 9... Bg5 {[%clk 0:02:34]} 10.
Bxg5 {[%clk 0:02:48.1]} 10... Qxg5 {[%clk 0:02:32.9]} 11. O-O {[%clk 0:02:48.6]}
11... Nc6 {[%clk 0:02:30.2]} 12. Nb5 {[%clk 0:02:25.3]} 12... Re7 {[%clk
0:02:19.7]} 13. Ng3 {[%clk 0:02:02.2]} 13... a6 {[%clk 0:02:18.5]} 14. Nc3
{[%clk 0:01:45.4]} 14... Bg4 {[%clk 0:02:03.7]} 15. Qb1 {[%clk 0:01:37.6]} 15...
Nxd4 {[%clk 0:02:01.3]} 16. Bxh7+ {[%clk 0:01:37.4]} 16... Kh8 {[%clk
0:02:01.4]} 17. Be4 {[%clk 0:01:35.9]} 17... f5 {[%clk 0:01:33.4]} 18. Bxb7
{[%clk 0:01:31.3]} 18... Rb8 {[%clk 0:01:33.3]} 19. Qd3 {[%clk 0:01:00.3]} 19...
c5 {[%clk 0:01:24.3]} 20. Bd5 {[%clk 0:00:58.7]} 20... f4 {[%clk 0:01:23]} 21.
Nge4 {[%clk 0:00:57.6]} 21... Qg6 {[%clk 0:01:07.9]} 22. f3 {[%clk 0:00:34.7]}
22... Bh3 {[%clk 0:00:52.5]} 23. Rf2 {[%clk 0:00:33.5]} 23... Bf5 {[%clk
0:00:45.8]} 24. Re1 {[%clk 0:00:30.1]} 24... Rbe8 {[%clk 0:00:43.8]} 25. Qd2
{[%clk 0:00:28.3]} 25... Qh6 {[%clk 0:00:33.2]} 26. Rff1 {[%clk 0:00:17]} 26...
g5 {[%clk 0:00:27.9]} 27. Nf2 {[%clk 0:00:14.4]} 27... Nc2 {[%clk 0:00:23.6]}
28. Rxe7 {[%clk 0:00:13.4]} 28... Rxe7 {[%clk 0:00:24.5]} 29. Be4 {[%clk
0:00:13.8]} 29... Bc8 {[%clk 0:00:14.7]} 30. Qxc2 {[%clk 0:00:12.6]} 30... Nxc4
{[%clk 0:00:14]} 31. Nd5 {[%clk 0:00:11.5]} 31... Ne3 {[%clk 0:00:11.6]} 32.
Nxe3 {[%clk 0:00:11.4]} 32... fxe3 {[%clk 0:00:12.5]} 33. Qc3+ {[%clk 0:00:12]}
33... Re5 {[%clk 0:00:12.8]} 34. Nd3 {[%clk 0:00:10.3]} 34... e2 {[%clk
0:00:12.2]} 35. Re1 {[%clk 0:00:10.7]} 35... g4 {[%clk 0:00:11.7]} 36. Nxe5
{[%clk 0:00:10.7]} 36... dxe5 {[%clk 0:00:11.1]} 37. Qxe5+ {[%clk 0:00:10.4]}
37... Kg8 {[%clk 0:00:12]} 38. Bd5+ {[%clk 0:00:10]} 38... Kf8 {[%clk
0:00:11.6]} 39. Qxe2 {[%clk 0:00:09]} 39... Qg6 {[%clk 0:00:09.3]} 40. Qe7#
{[%clk 0:00:08.9]} 1-0

[Event "*** Titled Tuesday Blitz"]
[Site "Chess.com"]
[Date "2020.03.03"]
[Round "4"]
[White "gemarin"]
[Black "Teidi96"]
[Result "1/2-1/2"]
[WhiteElo "2100"]
[BlackElo "2269"]
[TimeControl "180+1"]
[EndTime "13:40:52 PST"]
[Termination "Game drawn by repetition"]

1. d4 {[%clk 0:03:00.9]} 1... Nf6 {[%clk 0:02:59.1]} 2. c4 {[%clk 0:03:00.5]}
2... g6 {[%clk 0:02:59.8]} 3. Nc3 {[%clk 0:02:59.6]} 3... d5 {[%clk 0:03:00.4]}
4. Nf3 {[%clk 0:02:58.3]} 4... Bg7 {[%clk 0:02:59.1]} 5. Qb3 {[%clk 0:02:57.8]}
5... dxc4 {[%clk 0:02:57.9]} 6. Qxc4 {[%clk 0:02:57.6]} 6... O-O {[%clk
0:02:58.4]} 7. Bf4 {[%clk 0:02:57.2]} 7... Na6 {[%clk 0:02:55.4]} 8. e4 {[%clk
0:02:55.7]} 8... c6 {[%clk 0:01:40.9]} 9. a3 {[%clk 0:02:42.5]} 9... Bg4 {[%clk
0:01:34.1]} 10. Be2 {[%clk 0:02:40.1]} 10... Rc8 {[%clk 0:01:23.7]} 11. O-O
{[%clk 0:02:38.2]} 11... c5 {[%clk 0:01:12.5]} 12. d5 {[%clk 0:02:35.4]} 12...
Nd7 {[%clk 0:01:00.1]} 13. Rfd1 {[%clk 0:02:30.1]} 13... Bxf3 {[%clk 0:00:57.9]}
14. gxf3 {[%clk 0:02:27.9]} 14... Ne5 {[%clk 0:00:57.3]} 15. Qb3 {[%clk
0:02:23.2]} 15... Qb6 {[%clk 0:00:45.1]} 16. Qxb6 {[%clk 0:02:21.2]} 16... axb6
{[%clk 0:00:44.5]} 17. Rac1 {[%clk 0:02:07.4]} 17... Rfd8 {[%clk 0:00:36.7]} 18.
b3 {[%clk 0:01:58.4]} 18... h6 {[%clk 0:00:35.5]} 19. Na4 {[%clk 0:01:53.1]}
19... Rd6 {[%clk 0:00:30.5]} 20. Rc2 {[%clk 0:01:39.9]} 20... g5 {[%clk
0:00:29.1]} 21. Bg3 {[%clk 0:01:38.3]} 21... b5 {[%clk 0:00:21]} 22. Nb2 {[%clk
0:01:27.7]} 22... b4 {[%clk 0:00:07.8]} 23. a4 {[%clk 0:01:25.2]} 23... Nb8
{[%clk 0:00:06.1]} 24. Bxe5 {[%clk 0:01:18.9]} 24... Bxe5 {[%clk 0:00:04.7]} 25.
Nc4 {[%clk 0:01:19.2]} 25... Nd7 {[%clk 0:00:03.8]} 26. Nxd6 {[%clk 0:01:17]}
26... exd6 {[%clk 0:00:04.7]} 27. Bb5 {[%clk 0:01:14.3]} 27... Nf6 {[%clk
0:00:03.8]} 28. Kf1 {[%clk 0:01:11.9]} 28... Ra8 {[%clk 0:00:02.8]} 29. h3
{[%clk 0:01:11]} 29... Nh5 {[%clk 0:00:03]} 30. Bd7 {[%clk 0:01:09]} 30... Nf4
{[%clk 0:00:03.9]} 31. Bf5 {[%clk 0:01:05.7]} 31... Kf8 {[%clk 0:00:04]} 32.
Rdc1 {[%clk 0:01:04.6]} 32... Ke7 {[%clk 0:00:04.2]} 33. Rd1 {[%clk 0:01:03.6]}
33... Bd4 {[%clk 0:00:04]} 34. Rc4 {[%clk 0:01:02]} 34... Be5 {[%clk 0:00:03.4]}
35. Rd2 {[%clk 0:01:00.5]} 35... b6 {[%clk 0:00:03.6]} 36. Rd1 {[%clk
0:00:59.9]} 36... Rb8 {[%clk 0:00:03.2]} 37. Rc2 {[%clk 0:00:57.3]} 37... Ra8
{[%clk 0:00:03.5]} 38. Rb1 {[%clk 0:00:55.7]} 38... Kf6 {[%clk 0:00:03.1]} 39.
Rd1 {[%clk 0:00:55]} 39... Ke7 {[%clk 0:00:03.1]} 40. Rdd2 {[%clk 0:00:53.7]}
40... Kd8 {[%clk 0:00:03]} 41. Rd1 {[%clk 0:00:53.2]} 41... Kc7 {[%clk
0:00:02.9]} 42. Rdd2 {[%clk 0:00:52.2]} 42... Kb7 {[%clk 0:00:03.2]} 43. Rd1
{[%clk 0:00:51.9]} 43... Rb8 {[%clk 0:00:03.3]} 44. Ra2 {[%clk 0:00:41]} 44...
Ra8 {[%clk 0:00:03]} 45. Rdd2 {[%clk 0:00:40.5]} 45... Kc7 {[%clk 0:00:03]} 46.
Rd1 {[%clk 0:00:39.6]} 46... Kb7 {[%clk 0:00:03]} 47. Rdd2 {[%clk 0:00:39.6]}
47... Kc7 {[%clk 0:00:02.5]} 48. Rdc2 {[%clk 0:00:39.6]} 48... Bd4 {[%clk
0:00:01.7]} 49. Rd2 {[%clk 0:00:39.1]} 49... Be5 {[%clk 0:00:01.1]} 1/2-1/2

[Event "*** Titled Tuesday Blitz"]
[Site "Chess.com"]
[Date "2020.03.03"]
[Round "4"]
[White "talman67"]
[Black "pedroholly22"]
[Result "1-0"]
[WhiteElo "2522"]
[BlackElo "2322"]
[TimeControl "180+1"]
[EndTime "13:41:00 PST"]
[Termination "talman67 won by resignation"]

1. e4 {[%clk 0:03:00.9]} 1... c5 {[%clk 0:02:57.3]} 2. Nf3 {[%clk 0:03:00.6]}
2... d6 {[%clk 0:02:56.9]} 3. d4 {[%clk 0:03:00.7]} 3... cxd4 {[%clk 0:02:57.8]}
4. Nxd4 {[%clk 0:03:01.6]} 4... Nf6 {[%clk 0:02:57.8]} 5. Nc3 {[%clk 0:03:02]}
5... g6 {[%clk 0:02:55.6]} 6. Be3 {[%clk 0:03:01.6]} 6... Bg7 {[%clk 0:02:55.2]}
7. f3 {[%clk 0:03:01.5]} 7... Nc6 {[%clk 0:02:55.1]} 8. Qd2 {[%clk 0:03:01.7]}
8... O-O {[%clk 0:02:54.4]} 9. O-O-O {[%clk 0:03:01.6]} 9... d5 {[%clk
0:02:54.1]} 10. exd5 {[%clk 0:03:01.4]} 10... Nxd5 {[%clk 0:02:54.1]} 11. Nxc6
{[%clk 0:02:58.3]} 11... bxc6 {[%clk 0:02:55]} 12. Bd4 {[%clk 0:02:59]} 12...
Bxd4 {[%clk 0:02:53.1]} 13. Qxd4 {[%clk 0:02:58.5]} 13... Qb6 {[%clk 0:02:53.7]}
14. Na4 {[%clk 0:02:57.4]} 14... Qc7 {[%clk 0:02:52.5]} 15. Nc5 {[%clk
0:02:53.1]} 15... Rb8 {[%clk 0:02:49.8]} 16. Bc4 {[%clk 0:02:49.4]} 16... e6
{[%clk 0:02:37]} 17. h4 {[%clk 0:02:45.8]} 17... Rb4 {[%clk 0:02:30.9]} 18. a3
{[%clk 0:02:42.4]} 18... Rxc4 {[%clk 0:02:25]} 19. Qxc4 {[%clk 0:02:40.5]} 19...
Ne3 {[%clk 0:02:25.5]} 20. Qd4 {[%clk 0:02:14.7]} 20... Nxd1 {[%clk 0:02:25.1]}
21. Rxd1 {[%clk 0:02:15.6]} 21... f5 {[%clk 0:02:10.4]} 22. Qd6 {[%clk
0:02:09.4]} 22... Rf7 {[%clk 0:02:02.6]} 23. Qxc7 {[%clk 0:02:04.1]} 23... Rxc7
{[%clk 0:02:03.5]} 24. f4 {[%clk 0:02:05]} 24... Kf7 {[%clk 0:01:58.7]} 25. Nd3
{[%clk 0:01:58.7]} 25... c5 {[%clk 0:01:55.1]} 26. Ne5+ {[%clk 0:01:57.6]} 26...
Ke7 {[%clk 0:01:54.7]} 27. b4 {[%clk 0:01:41.9]} 27... cxb4 {[%clk 0:01:53.1]}
28. axb4 {[%clk 0:01:42.3]} 28... Bb7 {[%clk 0:01:53.6]} 29. g3 {[%clk
0:01:40.6]} 29... Bd5 {[%clk 0:01:51.1]} 30. Kb2 {[%clk 0:01:36.9]} 30... Rb7
{[%clk 0:01:36.7]} 31. c4 {[%clk 0:01:33.6]} 31... Rxb4+ {[%clk 0:01:24.3]} 32.
Kc3 {[%clk 0:01:13]} 32... Ra4 {[%clk 0:01:20.1]} 33. cxd5 {[%clk 0:01:10.8]}
33... exd5 {[%clk 0:01:18.2]} 34. Rxd5 {[%clk 0:00:48.5]} 34... Ra3+ {[%clk
0:01:16.7]} 35. Kd4 {[%clk 0:00:48.9]} 35... Rxg3 {[%clk 0:01:17.6]} 36. Rd7+
{[%clk 0:00:46.5]} 36... Ke6 {[%clk 0:01:09.3]} 37. Rxa7 {[%clk 0:00:40.6]}
37... h6 {[%clk 0:01:07.4]} 38. Ra6+ {[%clk 0:00:39.5]} 38... Ke7 {[%clk
0:01:00.7]} 39. Rxg6 {[%clk 0:00:40.4]} 39... Ra3 {[%clk 0:00:54.3]} 40. Rxh6
{[%clk 0:00:37.2]} 40... Ra1 {[%clk 0:00:52.6]} 41. Nc6+ {[%clk 0:00:25.1]}
41... Kd7 {[%clk 0:00:52.1]} 42. Ke5 {[%clk 0:00:25.3]} 42... Rc1 {[%clk
0:00:46.6]} 43. Kxf5 {[%clk 0:00:24.1]} 43... Rg1 {[%clk 0:00:41.3]} 44. Ne5+
{[%clk 0:00:23.1]} 44... Ke7 {[%clk 0:00:41.7]} 45. h5 {[%clk 0:00:22.9]} 45...
Rh1 {[%clk 0:00:42.1]} 46. Rh7+ {[%clk 0:00:22.7]} 46... Kf8 {[%clk 0:00:42.1]}
47. h6 {[%clk 0:00:22.9]} 47... Kg8 {[%clk 0:00:42.3]} 48. Rg7+ {[%clk 0:00:23]}
48... Kf8 {[%clk 0:00:38.7]} 49. Ng6+ {[%clk 0:00:23.6]} 49... Ke8 {[%clk
0:00:38.8]} 50. h7 {[%clk 0:00:24.3]} 50... Rh5+ {[%clk 0:00:35.2]} 51. Kf6
{[%clk 0:00:23.9]} 51... Rh1 {[%clk 0:00:36.1]} 52. h8=Q+ {[%clk 0:00:22.4]} 1-0

[Event "*** Titled Tuesday Blitz"]
[Site "Chess.com"]
[Date "2020.03.03"]
[Round "4"]
[White "aridannie"]
[Black "Shahinyan_ChessMood"]
[Result "1-0"]
[WhiteElo "2440"]
[BlackElo "2612"]
[TimeControl "180+1"]
[EndTime "13:41:09 PST"]
[Termination "aridannie won by checkmate"]

1. e4 {[%clk 0:02:55.3]} 1... e6 {[%clk 0:02:24]} 2. d4 {[%clk 0:02:54.9]} 2...
d5 {[%clk 0:02:23.8]} 3. Nd2 {[%clk 0:02:55]} 3... Nc6 {[%clk 0:02:22.9]} 4.
Ngf3 {[%clk 0:02:53.6]} 4... Nf6 {[%clk 0:02:21.5]} 5. e5 {[%clk 0:02:52.7]}
5... Nd7 {[%clk 0:02:19.9]} 6. c4 {[%clk 0:02:52.5]} 6... dxc4 {[%clk
0:02:16.8]} 7. Nxc4 {[%clk 0:02:53.4]} 7... Nb6 {[%clk 0:02:17.1]} 8. Be2 {[%clk
0:02:40.1]} 8... Bb4+ {[%clk 0:02:10.1]} 9. Bd2 {[%clk 0:02:39.7]} 9... Be7
{[%clk 0:02:10.3]} 10. Nxb6 {[%clk 0:02:29.7]} 10... axb6 {[%clk 0:02:09.2]} 11.
Be3 {[%clk 0:02:25]} 11... O-O {[%clk 0:02:03]} 12. O-O {[%clk 0:02:24.3]} 12...
Qd5 {[%clk 0:02:03.5]} 13. a3 {[%clk 0:02:18.6]} 13... Rd8 {[%clk 0:02:03]} 14.
Qc2 {[%clk 0:02:15.3]} 14... h6 {[%clk 0:01:45.9]} 15. Bd3 {[%clk 0:02:11.6]}
15... Qd7 {[%clk 0:01:42.4]} 16. Rad1 {[%clk 0:01:57.9]} 16... Bf8 {[%clk
0:01:42.2]} 17. h4 {[%clk 0:01:55]} 17... Ne7 {[%clk 0:01:42.1]} 18. Qe2 {[%clk
0:01:50.3]} 18... Nd5 {[%clk 0:01:40.9]} 19. Bb1 {[%clk 0:01:48.7]} 19... h5
{[%clk 0:00:57.2]} 20. Ng5 {[%clk 0:01:43.3]} 20... g6 {[%clk 0:00:57.4]} 21.
Ne4 {[%clk 0:01:35.5]} 21... Bg7 {[%clk 0:00:52.8]} 22. Bg5 {[%clk 0:01:30.5]}
22... Rf8 {[%clk 0:00:52.5]} 23. Nf6+ {[%clk 0:01:28.6]} 23... Bxf6 {[%clk
0:00:29.2]} 24. Bxf6 {[%clk 0:01:27.5]} 24... Nxf6 {[%clk 0:00:19.8]} 25. exf6
{[%clk 0:01:28.4]} 25... Ra5 {[%clk 0:00:20.3]} 26. Qe3 {[%clk 0:01:15.2]} 26...
Qd8 {[%clk 0:00:19.7]} 27. Qf3 {[%clk 0:01:04.6]} 27... Re8 {[%clk 0:00:14.7]}
28. Rfe1 {[%clk 0:01:00.9]} 28... Rd5 {[%clk 0:00:14.9]} 29. Qf4 {[%clk
0:00:56.9]} 29... Kh7 {[%clk 0:00:12.2]} 30. Be4 {[%clk 0:00:47.9]} 30... Ra5
{[%clk 0:00:04.4]} 31. Bc2 {[%clk 0:00:42.4]} 31... Kg8 {[%clk 0:00:03.6]} 32.
Re5 {[%clk 0:00:40.3]} 32... Rd5 {[%clk 0:00:03.8]} 33. Qg5 {[%clk 0:00:31.3]}
33... c5 {[%clk 0:00:02.9]} 34. Rd3 {[%clk 0:00:26.4]} 34... Qd6 {[%clk
0:00:01.1]} 35. Rg3 {[%clk 0:00:23]} 35... Qf8 {[%clk 0:00:01.5]} 36. Bxg6
{[%clk 0:00:20.4]} 36... Rxe5 {[%clk 0:00:01.5]} 37. Bxf7+ {[%clk 0:00:18.5]}
37... Kxf7 {[%clk 0:00:01.9]} 38. Qg6# {[%clk 0:00:18.2]} 1-0

[Event "*** Titled Tuesday Blitz"]
[Site "Chess.com"]
[Date "2020.03.03"]
[Round "4"]
[White "vpsetter"]
[Black "Gabrielian_Artur"]
[Result "0-1"]
[WhiteElo "2583"]
[BlackElo "2777"]
[TimeControl "180+1"]
[EndTime "13:41:10 PST"]
[Termination "Gabrielian_Artur won by resignation"]

1. e4 {[%clk 0:02:59.6]} 1... c5 {[%clk 0:02:59.7]} 2. Nf3 {[%clk 0:02:58.4]}
2... d6 {[%clk 0:02:59.8]} 3. d4 {[%clk 0:02:58.8]} 3... cxd4 {[%clk 0:03:00]}
4. Nxd4 {[%clk 0:02:59.7]} 4... Nf6 {[%clk 0:03:00.2]} 5. Nc3 {[%clk 0:03:00.2]}
5... Nc6 {[%clk 0:03:00.4]} 6. Bg5 {[%clk 0:02:56]} 6... e6 {[%clk 0:03:00.4]}
7. Qd2 {[%clk 0:02:51.6]} 7... a6 {[%clk 0:03:00.6]} 8. O-O-O {[%clk 0:02:50.3]}
8... Bd7 {[%clk 0:03:00.6]} 9. f4 {[%clk 0:02:49]} 9... Be7 {[%clk 0:03:00.6]}
10. Nf3 {[%clk 0:02:39.5]} 10... b5 {[%clk 0:03:00.1]} 11. Bxf6 {[%clk
0:02:35.3]} 11... gxf6 {[%clk 0:02:59.7]} 12. f5 {[%clk 0:02:26.3]} 12... Qa5
{[%clk 0:02:59.3]} 13. fxe6 {[%clk 0:02:16.3]} 13... fxe6 {[%clk 0:02:57.9]} 14.
Kb1 {[%clk 0:02:16.3]} 14... h5 {[%clk 0:02:57.3]} 15. g3 {[%clk 0:02:15]} 15...
Ne5 {[%clk 0:02:51.2]} 16. Nd4 {[%clk 0:02:05.8]} 16... Rc8 {[%clk 0:02:30.4]}
17. Bh3 {[%clk 0:01:49.4]} 17... Nc4 {[%clk 0:02:23.8]} 18. Qd3 {[%clk
0:01:39.9]} 18... Qb4 {[%clk 0:02:06.7]} 19. Nb3 {[%clk 0:01:24]} 19... a5
{[%clk 0:01:58.2]} 20. Ne2 {[%clk 0:01:17.3]} 20... Ne5 {[%clk 0:01:52.5]} 21.
Qd4 {[%clk 0:01:07.2]} 21... Qxd4 {[%clk 0:01:29.9]} 22. Nexd4 {[%clk
0:01:05.9]} 22... a4 {[%clk 0:01:27.3]} 23. Nc1 {[%clk 0:00:59.3]} 23... Kf7
{[%clk 0:01:25]} 24. Rd2 {[%clk 0:00:51.4]} 24... h4 {[%clk 0:01:22.3]} 25. Bg2
{[%clk 0:00:40.3]} 25... Rcg8 {[%clk 0:01:18.9]} 26. Nce2 {[%clk 0:00:32]} 26...
Bf8 {[%clk 0:01:07.3]} 27. Rf1 {[%clk 0:00:21.4]} 27... hxg3 {[%clk 0:01:02]}
28. hxg3 {[%clk 0:00:17.8]} 28... Rh2 {[%clk 0:00:52.6]} 29. Rg1 {[%clk
0:00:16.8]} 29... Bh6 {[%clk 0:00:46.2]} 30. Rdd1 {[%clk 0:00:11.4]} 30... Be3
{[%clk 0:00:44.4]} 31. Nf3 {[%clk 0:00:05.9]} 31... Nxf3 {[%clk 0:00:37.8]} 32.
Bxf3 {[%clk 0:00:06.1]} 32... Bxg1 {[%clk 0:00:37.6]} 33. Rxg1 {[%clk
0:00:06.7]} 33... Rg5 {[%clk 0:00:17.1]} 34. b3 {[%clk 0:00:06.7]} 34... a3
{[%clk 0:00:16.9]} 35. Nf4 {[%clk 0:00:05.5]} 35... Bc6 {[%clk 0:00:14.1]} 36.
g4 {[%clk 0:00:03.3]} 36... Re5 {[%clk 0:00:13.1]} 37. Re1 {[%clk 0:00:02.1]}
37... Rf2 {[%clk 0:00:12.2]} 38. Nd3 {[%clk 0:00:02.1]} 38... Rxf3 {[%clk
0:00:11.9]} 0-1

[Event "*** Titled Tuesday Blitz"]
[Site "Chess.com"]
[Date "2020.03.03"]
[Round "4"]
[White "GrigorGrigorov"]
[Black "GadimbayliA"]
[Result "0-1"]
[WhiteElo "2753"]
[BlackElo "2910"]
[TimeControl "180+1"]
[EndTime "13:41:11 PST"]
[Termination "GadimbayliA won on time"]

1. d4 {[%clk 0:03:00.9]} 1... d5 {[%clk 0:02:57]} 2. c4 {[%clk 0:03:00.9]} 2...
e5 {[%clk 0:02:56.7]} 3. dxe5 {[%clk 0:03:00.5]} 3... d4 {[%clk 0:02:57.6]} 4.
Nf3 {[%clk 0:03:00.8]} 4... Nc6 {[%clk 0:02:57.7]} 5. a3 {[%clk 0:03:01.1]} 5...
Nge7 {[%clk 0:02:57.2]} 6. b4 {[%clk 0:02:41.3]} 6... Ng6 {[%clk 0:02:56.4]} 7.
Bb2 {[%clk 0:02:35.9]} 7... a5 {[%clk 0:02:56.1]} 8. b5 {[%clk 0:02:34.8]} 8...
Ncxe5 {[%clk 0:02:56.3]} 9. Bxd4 {[%clk 0:02:12.3]} 9... Nxc4 {[%clk 0:02:40.7]}
10. e3 {[%clk 0:02:12.3]} 10... Nd6 {[%clk 0:02:41]} 11. h4 {[%clk 0:02:08.8]}
11... h5 {[%clk 0:02:33.9]} 12. Bd3 {[%clk 0:02:07.3]} 12... Nf5 {[%clk
0:02:27.1]} 13. Qc2 {[%clk 0:01:33.9]} 13... Nxd4 {[%clk 0:02:12.4]} 14. Nxd4
{[%clk 0:01:32.1]} 14... Ne5 {[%clk 0:02:12]} 15. Be4 {[%clk 0:01:29.5]} 15...
Bd6 {[%clk 0:02:09.2]} 16. Nd2 {[%clk 0:01:24.8]} 16... O-O {[%clk 0:02:05.7]}
17. N2f3 {[%clk 0:01:24.7]} 17... Ng4 {[%clk 0:01:58.3]} 18. Ng5 {[%clk
0:01:21.8]} 18... Nf6 {[%clk 0:01:50.6]} 19. Bh7+ {[%clk 0:01:17.4]} 19... Kh8
{[%clk 0:01:49.5]} 20. Bf5 {[%clk 0:01:17.6]} 20... g6 {[%clk 0:01:42.4]} 21.
Bxc8 {[%clk 0:01:05.1]} 21... Rxc8 {[%clk 0:01:43.3]} 22. O-O {[%clk 0:00:59.3]}
22... Qe7 {[%clk 0:01:43]} 23. a4 {[%clk 0:00:57]} 23... Kg7 {[%clk 0:01:40.8]}
24. g3 {[%clk 0:00:55.1]} 24... Be5 {[%clk 0:01:40.5]} 25. Rad1 {[%clk
0:00:54.3]} 25... Rfd8 {[%clk 0:01:38.4]} 26. Rd2 {[%clk 0:00:50.1]} 26... Bxd4
{[%clk 0:01:35.8]} 27. Rxd4 {[%clk 0:00:47.7]} 27... Rxd4 {[%clk 0:01:31.3]} 28.
exd4 {[%clk 0:00:48.6]} 28... Rd8 {[%clk 0:01:31.6]} 29. Qc3 {[%clk 0:00:44.9]}
29... Nd5 {[%clk 0:01:28.6]} 30. Qxa5 {[%clk 0:00:42.1]} 30... Qe2 {[%clk
0:01:23.6]} 31. Qe1 {[%clk 0:00:38.1]} 31... Qxe1 {[%clk 0:01:09.5]} 32. Rxe1
{[%clk 0:00:39]} 32... Ra8 {[%clk 0:01:09.9]} 33. Re5 {[%clk 0:00:29.7]} 33...
c6 {[%clk 0:01:05.1]} 34. bxc6 {[%clk 0:00:29.1]} 34... bxc6 {[%clk 0:01:06]}
35. Re1 {[%clk 0:00:24.7]} 35... Rxa4 {[%clk 0:01:05]} 36. Rc1 {[%clk
0:00:22.2]} 36... Ne7 {[%clk 0:01:03.8]} 37. Nf3 {[%clk 0:00:19.2]} 37... f6
{[%clk 0:00:59.8]} 38. Kg2 {[%clk 0:00:19.1]} 38... Kf7 {[%clk 0:01:00]} 39. Rb1
{[%clk 0:00:17.5]} 39... Ke6 {[%clk 0:00:53.9]} 40. Rb7 {[%clk 0:00:16.7]} 40...
Nf5 {[%clk 0:00:50.3]} 41. Rc7 {[%clk 0:00:15.1]} 41... Rc4 {[%clk 0:00:45.6]}
42. Rc8 {[%clk 0:00:14.5]} 42... Nd6 {[%clk 0:00:41.7]} 43. Rg8 {[%clk
0:00:12.7]} 43... Kf7 {[%clk 0:00:41]} 44. Rd8 {[%clk 0:00:12.5]} 44... Ke6
{[%clk 0:00:32.7]} 45. Rg8 {[%clk 0:00:11.9]} 45... Kf5 {[%clk 0:00:33]} 46. Rd8
{[%clk 0:00:09.4]} 46... Ne4 {[%clk 0:00:33.2]} 47. Ne1 {[%clk 0:00:02.9]} 47...
Rc1 {[%clk 0:00:31.3]} 48. Nd3 {[%clk 0:00:02.5]} 48... Rd1 {[%clk 0:00:29.2]}
0-1